bitfinex/quotes_BTCUSD_20250608
["timestamp","ask_amount","ask_price","bid_price","bid_amount"]
[1749342182029,0.58152,105620.0,105610.0,0.71585818]
[1749342182234,0.58152,105620.0,105610.0,0.70698111]
[1749342182869,0.58152,105620.0,105610.0,0.71585815]
[1749342183076,0.58152,105620.0,105610.0,0.71585814]
[1749342183287,0.58152,105620.0,105610.0,0.71585813]
[1749342183922,0.58152,105620.0,105610.0,0.70698111]
[1749342184131,0.58152,105620.0,105610.0,0.71585813]
[1749342184370,0.58152,105620.0,105610.0,0.71585814]
[1749342184587,0.58152,105620.0,105610.0,0.70698111]
[1749342184825,0.58152,105620.0,105610.0,0.71585814]
[1749342185248,0.58152,105620.0,105610.0,0.70698111]
[1749342185698,0.58152,105620.0,105610.0,0.71585814]
[1749342186344,0.58152,105620.0,105610.0,0.70698111]
[1749342186562,0.58152,105620.0,105610.0,0.71585814]
[1749342187426,0.58152,105620.0,105610.0,0.71585827]
[1749342187629,0.58152,105620.0,105610.0,0.70698111]
[1749342188076,0.58152,105620.0,105610.0,0.71585827]
[1749342189107,0.58152,105620.0,105610.0,0.70698111]
[1749342189764,0.58152,105620.0,105610.0,0.71585838]
[1749342189967,0.58152,105620.0,105610.0,0.70698111]
[1749342190792,0.58152,105620.0,105610.0,0.7158588]
[1749342192428,0.58152,105620.0,105610.0,0.73898111]
[1749342192637,0.58152,105620.0,105610.0,0.74785879]
[1749342192808,0.58152,105620.0,105610.0,0.74785978]
[1749342193039,0.58152,105620.0,105610.0,0.70998048]
[1749342193239,0.58152,105620.0,105610.0,0.70998034]
[1749342193442,0.58152,105620.0,105610.0,0.70110181]
[1749342193852,0.58152,105620.0,105610.0,0.70998027]
[1749342194255,0.58152,105620.0,105610.0,0.70110181]
[1749342194460,0.58152,105620.0,105610.0,0.66910181]
[1749342198126,0.58152,105620.0,105610.0,0.67798171]
[1749342198893,0.58152,105620.0,105610.0,0.66910181]
[1749342199096,0.58152,105620.0,105610.0,0.67798095]
[1749342199734,0.58152,105620.0,105610.0,0.68686073]
[1749342201263,0.58152,105620.0,105610.0,0.67798095]
[1749342201467,0.58152,105620.0,105610.0,0.68686073]
[1749342201829,0.49312,105620.0,105610.0,0.97304208]
[1749342202043,0.58108,105620.0,105610.0,1.03990698]
[1749342202244,0.58108,105620.0,105610.0,0.66810627]
[1749342202445,0.58108,105620.0,105610.0,1.03985652]
[1749342203234,0.58008,105620.0,105610.0,1.03985652]
[1749342203669,0.57908,105620.0,105610.0,1.03985652]
[1749342204686,0.57908,105620.0,105610.0,1.74085652]
[1749342211568,0.57908,105620.0,105610.0,1.04085652]
[1749342213481,0.57908,105620.0,105610.0,0.74480049]
[1749342213691,0.57908,105620.0,105610.0,1.04085652]
[1749342213907,0.57908,105620.0,105610.0,1.33875652]
[1749342214548,0.57908,105620.0,105610.0,2.03875652]
[1749342217754,0.08796,105620.0,105610.0,2.03875652]
[1749342220593,0.08992,105630.0,105620.0,0.26500154]
[1749342220792,0.08992,105630.0,105620.0,1.7292073]
[1749342221973,0.09092,105630.0,105620.0,1.7292073]
[1749342222578,0.09092,105630.0,105620.0,1.7576483]
[1749342223160,0.08992,105630.0,105620.0,1.7576483]
[1749342223587,0.08992,105630.0,105620.0,1.0576483]
[1749342223786,0.08992,105630.0,105620.0,1.0586483]
[1749342224373,0.08992,105630.0,105620.0,1.6965483]
[1749342224593,0.08992,105630.0,105620.0,1.7465483]
[1749342226573,0.08992,105630.0,105620.0,2.4465483]
[1749342227629,0.08992,105630.0,105620.0,2.4181073]
[1749342228517,0.08992,105630.0,105620.0,2.34241308]
[1749342229293,0.08992,105630.0,105620.0,2.41796439]
[1749342229560,0.08992,105630.0,105620.0,2.34241308]
[1749342231552,0.08992,105630.0,105620.0,2.43692106]
[1749342233407,0.08992,105630.0,105620.0,2.34241308]
[1749342235755,0.4912076,105640.0,105620.0,2.34241308]
[1749342235756,4.76e-05,105640.0,105630.0,0.65388092]
[1749342235986,0.002,105650.0,105640.0,0.21771947]
[1749342236160,0.002,105650.0,105640.0,1.72315896]
[1749342236363,0.08992,105650.0,105640.0,0.6878469]
[1749342236561,0.12142,105650.0,105640.0,0.4278829]
[1749342236830,0.12142,105650.0,105640.0,0.7162429]
[1749342236995,0.12142,105650.0,105640.0,0.61223771]
[1749342237320,0.12142,105650.0,105640.0,0.67089822]
[1749342237775,0.12142,105650.0,105640.0,0.38253822]
[1749342237964,0.12142,105650.0,105640.0,0.67209822]
[1749342238571,0.12142,105650.0,105640.0,0.67009822]
[1749342239577,0.12142,105650.0,105640.0,1.37009822]
[1749342240991,0.12142,105650.0,105640.0,1.66615425]
[1749342246149,0.12142,105650.0,105640.0,1.66515425]
[1749342246592,0.12242,105650.0,105640.0,1.66515425]
[1749342247017,0.12342,105650.0,105640.0,1.66515425]
[1749342251400,0.12342,105650.0,105640.0,1.60849374]
[1749342258307,0.12342,105650.0,105640.0,1.31223771]
[1749342258926,0.1328844,105650.0,105640.0,1.07137146]
[1749342259137,0.1328844,105650.0,105640.0,1.35969146]
[1749342260335,0.14234898,105650.0,105640.0,1.35969146]
[1749342260539,0.1328844,105650.0,105640.0,1.35969146]
[1749342261882,0.1328844,105650.0,105640.0,0.65969146]
[1749342262433,0.14234898,105650.0,105640.0,0.65969146]
[1749342262639,0.1328844,105650.0,105640.0,0.65969146]
[1749342263917,0.14234889,105650.0,105640.0,0.65969146]
[1749342265890,0.1328844,105650.0,105640.0,0.65969146]
[1749342266124,0.14234898,105650.0,105640.0,0.65969146]
[1749342266940,0.1328844,105650.0,105640.0,0.65969146]
[1749342267491,0.14234889,105650.0,105640.0,0.65969146]
[1749342277111,0.13288449,105650.0,105640.0,0.65969146]
[1749342280540,0.13288449,105650.0,105640.0,0.66005146]
[1749342281297,0.67165409,105650.0,105640.0,0.06672858]
[1749342281519,0.68937873,105650.0,105640.0,0.02887048]
[1749342281722,0.68937862,105650.0,105640.0,0.00047691]
[1749342282090,0.68937966,105650.0,105640.0,0.00047691]
[1749342282394,0.69602673,105650.0,105640.0,0.00047691]
[1749342282528,0.69602672,105650.0,105640.0,0.00047691]
[1749342282934,0.68937965,105650.0,105640.0,0.00047691]
[1749342283139,0.68935788,105650.0,105640.0,0.00047691]
[1749342283561,0.67165409,105650.0,105640.0,0.00047691]
[1749342283763,0.67829291,105650.0,105640.0,0.00047691]
[1749342283978,0.67165409,105650.0,105640.0,0.00047691]
[1749342284178,0.67829288,105650.0,105640.0,0.00047691]
[1749342284391,0.69599633,105650.0,105640.0,0.00047691]
[1749342285051,0.68935754,105650.0,105640.0,0.00047691]
[1749342285272,0.68934848,105650.0,105640.0,0.00047691]
[1749342285472,0.67165409,105650.0,105640.0,0.00047691]
[1749342286204,0.6893489,105650.0,105640.0,0.00047691]
[1749342287212,0.67165409,105650.0,105640.0,0.00047691]
[1749342294473,0.67165409,105650.0,105640.0,0.19926524]
[1749342294725,0.39442979,105650.0,105640.0,0.22766249]
[1749342294925,0.36936449,105650.0,105640.0,0.22766249]
[1749342295111,0.48603868,105650.0,105640.0,0.22766249]
[1749342295346,0.48603859,105650.0,105640.0,0.22766249]
[1749342298712,0.47013859,105650.0,105640.0,0.22766249]
[1749342300322,0.49460371,105650.0,105640.0,0.22766258]
[1749342300520,0.49460362,105650.0,105640.0,0.23712806]
[1749342300721,0.67071418,105650.0,105640.0,0.00047691]
[1749342300930,0.6773474,105650.0,105640.0,0.00047691]
[1749342301489,0.70579686,105650.0,105640.0,0.00047691]
[1749342302083,0.70579437,105650.0,105640.0,0.00047691]
[1749342302289,0.70479437,105650.0,105640.0,0.00047691]
[1749342302693,0.70779437,105650.0,105640.0,0.00047691]
[1749342302938,0.71179293,105650.0,105640.0,0.00047691]
[1749342303721,0.70516318,105650.0,105640.0,0.00047691]
[1749342303941,0.71179293,105650.0,105640.0,0.00047691]
[1749342304574,0.71179414,105650.0,105640.0,0.00047691]
[1749342304770,0.70516318,105650.0,105640.0,0.00047691]
[1749342304978,0.71179414,105650.0,105640.0,0.00047691]
[1749342305333,0.70516318,105650.0,105640.0,0.00047691]
[1749342305837,0.71179412,105650.0,105640.0,0.00047691]
[1749342306623,0.70516318,105650.0,105640.0,0.00047691]
[1749342306825,0.71179576,105650.0,105640.0,0.00047691]
[1749342308363,0.71179572,105650.0,105640.0,0.00047691]
[1749342308562,0.70516318,105650.0,105640.0,0.00047691]
[1749342308791,0.71179571,105650.0,105640.0,0.00047691]
[1749342309903,0.80819519,105650.0,105640.0,0.00047691]
[1749342310078,0.80156266,105650.0,105640.0,0.00047691]
[1749342310284,0.80819425,105650.0,105640.0,0.00047691]
[1749342310621,0.80819424,105650.0,105640.0,0.00047691]
[1749342310767,0.80419424,105650.0,105640.0,0.00047691]
[1749342311196,0.81019424,105650.0,105640.0,0.00047691]
[1749342311476,0.80619424,105650.0,105640.0,0.00047691]
[1749342311751,0.81019424,105650.0,105640.0,0.00047691]
[1749342311959,0.80356266,105650.0,105640.0,0.00047691]
[1749342312140,0.81019915,105650.0,105640.0,0.00047691]
[1749342313553,0.81019577,105650.0,105640.0,0.00047691]
[1749342313753,1.35591578,105650.0,105640.0,0.00047691]
[1749342313962,1.34928266,105650.0,105640.0,0.00047691]
[1749342314156,1.35591571,105650.0,105640.0,0.00047691]
[1749342314390,1.34928266,105650.0,105640.0,0.00047691]
[1749342314605,1.35591571,105650.0,105640.0,0.00047691]
[1749342315275,1.35591521,105650.0,105640.0,0.00047691]
[1749342315682,1.34928266,105650.0,105640.0,0.00047691]
[1749342315901,1.35591519,105650.0,105640.0,0.00047691]
[1749342316131,1.35591521,105650.0,105640.0,0.00047691]
[1749342316930,1.34928266,105650.0,105640.0,0.00047691]
[1749342317354,1.35591408,105650.0,105640.0,0.00047691]
[1749342317561,1.35591393,105650.0,105640.0,0.00047691]
[1749342317754,1.34928266,105650.0,105640.0,0.00047691]
[1749342317956,1.35591388,105650.0,105640.0,0.00047691]
[1749342318383,1.35591359,105650.0,105640.0,0.00047691]
[1749342318731,1.34928266,105650.0,105640.0,0.00047691]
[1749342319612,1.35591359,105650.0,105640.0,0.00047691]
[1749342320661,1.34928266,105650.0,105640.0,0.00047691]
[1749342320868,1.35591452,105650.0,105640.0,0.00047691]
[1749342321067,1.35591454,105650.0,105640.0,0.00047691]
[1749342321267,1.34928266,105650.0,105640.0,0.00047691]
[1749342321475,1.35591445,105650.0,105640.0,0.00047691]
[1749342322786,1.3559146,105650.0,105640.0,0.00047691]
[1749342323001,1.35591459,105650.0,105640.0,0.00047691]
[1749342323428,1.34928266,105650.0,105640.0,0.00047691]
[1749342323574,1.35591461,105650.0,105640.0,0.00047691]
[1749342324323,1.35591476,105650.0,105640.0,0.00047691]
[1749342324854,1.34928266,105650.0,105640.0,0.00047691]
[1749342325121,1.35591461,105650.0,105640.0,0.00047691]
[1749342325277,1.34928266,105650.0,105640.0,0.00047691]
[1749342325455,1.35591708,105650.0,105640.0,0.00047691]
[1749342325659,1.34928266,105650.0,105640.0,0.00047691]
[1749342326076,1.35591701,105650.0,105640.0,0.00047691]
[1749342326279,1.34928266,105650.0,105640.0,0.00047691]
[1749342326471,1.35591699,105650.0,105640.0,0.00047691]
[1749342326685,1.34928266,105650.0,105640.0,0.00047691]
[1749342326880,1.35591698,105650.0,105640.0,0.00047691]
[1749342327301,1.34928266,105650.0,105640.0,0.00047691]
[1749342327506,1.3559232,105650.0,105640.0,0.00047691]
[1749342327822,1.35592319,105650.0,105640.0,0.00047691]
[1749342328029,1.34928266,105650.0,105640.0,0.00047691]
[1749342328218,1.35592319,105650.0,105640.0,0.00047691]
[1749342328744,1.3559232,105650.0,105640.0,0.00047691]
[1749342329349,1.35592321,105650.0,105640.0,0.00047691]
[1749342329556,1.34928266,105650.0,105640.0,0.00047691]
[1749342329765,1.35592336,105650.0,105640.0,0.00047691]
[1749342330349,1.35592332,105650.0,105640.0,0.00047691]
[1749342330923,1.35592362,105650.0,105640.0,0.00047691]
[1749342331120,1.34928266,105650.0,105640.0,0.00047691]
[1749342331748,1.3559236,105650.0,105640.0,0.00047691]
[1749342332195,1.37046445,105650.0,105640.0,0.00047691]
[1749342332800,1.36382351,105650.0,105640.0,0.00047691]
[1749342333006,1.37046571,105650.0,105640.0,0.00047691]
[1749342333471,1.36382351,105650.0,105640.0,0.00047691]
[1749342333626,1.3704657,105650.0,105640.0,0.00047691]
[1749342334696,1.36382351,105650.0,105640.0,0.00047691]
[1749342334902,1.37046569,105650.0,105640.0,0.00047691]
[1749342336401,1.65866569,105650.0,105640.0,0.00047691]
[1749342336757,1.34912266,105650.0,105640.0,0.00047691]
[1749342337080,1.62212266,105650.0,105640.0,0.00047691]
[1749342337286,1.61376716,105650.0,105640.0,0.03237691]
[1749342337492,1.32556716,105650.0,105640.0,0.03237691]
[1749342337699,1.27376716,105650.0,105640.0,0.03237691]
[1749342337904,1.613767,105650.0,105640.0,0.03237691]
[1749342338079,1.14104752,105650.0,105640.0,0.03237691]
[1749342338336,1.51736774,105650.0,105640.0,0.03237691]
[1749342338537,1.51736776,105650.0,105640.0,0.03237691]
[1749342338763,1.51736779,105650.0,105640.0,0.03237691]
[1749342339854,1.51736674,105650.0,105640.0,0.03237691]
[1749342340043,1.51072318,105650.0,105640.0,0.03237691]
[1749342340466,1.51736674,105650.0,105640.0,0.03237691]
[1749342341102,1.51736675,105650.0,105640.0,0.03237691]
[1749342341310,1.51072318,105650.0,105640.0,0.03237691]
[1749342341692,1.51736676,105650.0,105640.0,0.03237691]
[1749342342061,1.51072318,105650.0,105640.0,0.01597691]
[1749342342277,1.51736676,105650.0,105640.0,0.00047691]
[1749342343084,1.51736466,105650.0,105640.0,0.00047691]
[1749342343416,1.51736468,105650.0,105640.0,0.00047691]
[1749342343618,1.54936468,105650.0,105640.0,0.00047691]
[1749342343842,1.6959539,105650.0,105640.0,0.00047691]
[1749342344064,1.69595321,105650.0,105640.0,0.00047691]
[1749342344263,1.71049406,105650.0,105640.0,0.00047691]
[1749342344470,1.6797228,105650.0,105640.0,0.00047691]
[1749342345340,1.3034028,105650.0,105640.0,0.00047691]
[1749342345567,1.6796828,105650.0,105640.0,0.00047691]
[1749342345973,1.68632328,105650.0,105640.0,0.00047691]
[1749342346625,1.6796828,105650.0,105640.0,0.00047691]
[1749342347253,1.68632259,105650.0,105640.0,0.00047691]
[1749342348025,1.68632257,105650.0,105640.0,0.00047691]
[1749342348467,1.6796828,105650.0,105640.0,0.00047691]
[1749342348674,1.68632257,105650.0,105640.0,0.00047691]
[1749342349088,1.73632257,105650.0,105640.0,0.00047691]
[1749342349744,1.7296828,105650.0,105640.0,0.00047691]
[1749342349949,1.73632258,105650.0,105640.0,0.00047691]
[1749342350177,1.7296828,105650.0,105640.0,0.00047691]
[1749342351273,1.73632183,105650.0,105640.0,0.00047691]
[1749342351548,1.7296828,105650.0,105640.0,0.00047691]
[1749342351772,1.73632183,105650.0,105640.0,0.00047691]
[1749342352000,1.7296828,105650.0,105640.0,0.00047691]
[1749342352218,1.73632183,105650.0,105640.0,0.00047691]
[1749342352442,1.7296828,105650.0,105640.0,0.00047691]
[1749342352652,1.73632182,105650.0,105640.0,0.00047691]
[1749342353086,1.7296828,105650.0,105640.0,0.00047691]
[1749342353515,1.73632183,105650.0,105640.0,0.00047691]
[1749342353723,1.71026254,105650.0,105640.0,0.00047691]
[1749342353899,1.70362351,105650.0,105640.0,0.00047691]
[1749342354317,1.71026111,105650.0,105640.0,0.00047691]
[1749342354678,1.7102611,105650.0,105640.0,0.00047691]
[1749342354882,1.70362351,105650.0,105640.0,0.00047691]
[1749342355290,1.7102611,105650.0,105640.0,0.00047691]
[1749342355712,1.70362351,105650.0,105640.0,0.00047691]
[1749342355924,1.7102611,105650.0,105640.0,0.00047691]
[1749342356126,1.70362351,105650.0,105640.0,0.00047691]
[1749342356327,1.7102611,105650.0,105640.0,0.00047691]
[1749342356573,1.70362351,105650.0,105640.0,0.00047691]
[1749342356821,1.71026117,105650.0,105640.0,0.00047691]
[1749342357239,1.71026121,105650.0,105640.0,0.00047691]
[1749342357460,1.70362351,105650.0,105640.0,0.00047691]
[1749342357635,1.7102612,105650.0,105640.0,0.00047691]
[1749342357865,1.71026115,105650.0,105640.0,0.00047691]
[1749342358255,1.70362351,105650.0,105640.0,0.00047691]
[1749342358709,2.19486351,105650.0,105640.0,0.00047691]
[1749342359266,2.20150027,105650.0,105640.0,0.00047691]
[1749342359467,2.19486351,105650.0,105640.0,0.00047691]
[1749342359846,2.20150027,105650.0,105640.0,0.00047691]
[1749342360329,2.20150015,105650.0,105640.0,0.00047691]
[1749342360540,2.20149918,105650.0,105640.0,0.00047691]
[1749342360683,2.20149922,105650.0,105640.0,0.00047691]
[1749342361268,2.19486351,105650.0,105640.0,0.00047691]
[1749342361482,2.20149916,105650.0,105640.0,0.00047691]
[1749342361660,2.19486351,105650.0,105640.0,0.00047691]
[1749342362075,2.20149916,105650.0,105640.0,0.00047691]
[1749342362519,2.20149831,105650.0,105640.0,0.00047691]
[1749342362944,1.75881831,105650.0,105640.0,0.00047691]
[1749342363146,2.12834351,105650.0,105640.0,0.00047691]
[1749342363351,2.11274351,105650.0,105640.0,0.00047691]
[1749342363555,2.11937873,105650.0,105640.0,0.00047691]
[1749342363996,2.1165257,105650.0,105640.0,0.00047691]
[1749342364168,2.11652568,105650.0,105640.0,0.00047691]
[1749342364790,2.10989048,105650.0,105640.0,0.00047691]
[1749342365003,2.10198493,105650.0,105640.0,0.00047691]
[1749342365435,2.10198381,105650.0,105640.0,0.00047691]
[1749342365806,2.10198382,105650.0,105640.0,0.00047691]
[1749342366209,2.09534963,105650.0,105640.0,0.00047691]
[1749342366412,2.10198497,105650.0,105640.0,0.00047691]
[1749342366611,2.09534963,105650.0,105640.0,0.00047691]
[1749342367001,2.10198497,105650.0,105640.0,0.00047691]
[1749342367688,2.09534963,105650.0,105640.0,0.00047691]
[1749342368029,2.10198435,105650.0,105640.0,0.00047691]
[1749342368229,2.09534963,105650.0,105640.0,0.00047691]
[1749342368472,2.10198435,105650.0,105640.0,0.00047691]
[1749342368692,1.72582435,105650.0,105640.0,0.00047691]
[1749342368915,2.09534963,105650.0,105640.0,0.03177691]
[1749342369119,2.10198436,105650.0,105640.0,0.03177691]
[1749342369338,2.1019882,105650.0,105640.0,0.03177691]
[1749342369682,2.09534963,105650.0,105640.0,0.03177691]
[1749342370061,2.10198824,105650.0,105640.0,0.03035337]
[1749342370261,2.10198823,105650.0,105640.0,0.03035337]
[1749342370878,2.10198813,105650.0,105640.0,0.03035337]
[1749342371283,2.09534963,105650.0,105640.0,0.03035337]
[1749342371704,2.09534963,105650.0,105640.0,0.01525337]
[1749342371918,2.10198909,105650.0,105640.0,0.01525337]
[1749342372117,2.09534963,105650.0,105640.0,0.01525337]
[1749342372585,2.10198909,105650.0,105640.0,0.01525337]
[1749342373137,2.10199598,105650.0,105640.0,0.01525337]
[1749342373343,2.09534963,105650.0,105640.0,0.01525337]
[1749342373929,2.10199604,105650.0,105640.0,0.03105337]
[1749342374947,2.09534963,105650.0,105640.0,0.03105337]
[1749342375533,2.10199572,105650.0,105640.0,0.03105337]
[1749342375769,2.10199571,105650.0,105640.0,0.03105337]
[1749342376646,0.5293378,105640.0,105630.0,0.0314]
[1749342376858,0.62573728,105640.0,105630.0,0.03153542]
[1749342377066,0.63238329,105640.0,105630.0,0.03153542]
[1749342377475,0.65418928,105640.0,105630.0,0.03153542]
[1749342377690,0.66083531,105640.0,105630.0,0.03153542]
[1749342377902,0.66583527,105640.0,105630.0,0.03153542]
[1749342378104,0.66583542,105640.0,105630.0,0.03153542]
[1749342378316,0.65918928,105640.0,105630.0,0.03153542]
[1749342378482,0.66583531,105640.0,105630.0,0.03153542]
[1749342378664,0.6658354,105640.0,105630.0,0.03153542]
[1749342378881,0.66583539,105640.0,105630.0,0.03153542]
[1749342380075,0.65918928,105640.0,105630.0,0.03153542]
[1749342380308,0.66583538,105640.0,105630.0,0.03153542]
[1749342380540,0.66583546,105640.0,105630.0,0.03153542]
[1749342380745,0.66583544,105640.0,105630.0,0.03153542]
[1749342381160,0.66583549,105640.0,105630.0,0.03153542]
[1749342381702,0.65918928,105640.0,105630.0,0.03153542]
[1749342382114,0.66583553,105640.0,105630.0,0.03153542]
[1749342382330,0.66583551,105640.0,105630.0,0.03153542]
[1749342382493,0.6658355,105640.0,105630.0,0.03153542]
[1749342383144,0.66583573,105640.0,105630.0,0.03153542]
[1749342383755,0.66583644,105640.0,105630.0,0.03153542]
[1749342383998,0.66583637,105640.0,105630.0,0.03153542]
[1749342384408,0.66583635,105640.0,105630.0,0.03153542]
[1749342385189,0.66583647,105640.0,105630.0,0.03153542]
[1749342385682,0.65918928,105640.0,105630.0,0.03153542]
[1749342386713,0.66583648,105640.0,105630.0,0.03153542]
[1749342387313,0.8225378,105640.0,105630.0,0.03153542]
[1749342387508,0.9172252,105640.0,105630.0,0.03153542]
[1749342387745,0.9105778,105640.0,105630.0,0.03153542]
[1749342388354,0.91722529,105640.0,105630.0,0.03153542]
[1749342388711,0.9172252,105640.0,105630.0,0.03153542]
[1749342389350,0.9172245,105640.0,105630.0,0.03153542]
[1749342389504,0.9105778,105640.0,105630.0,0.03153542]
[1749342389711,0.9172245,105640.0,105630.0,0.03153542]
[1749342390101,0.9105778,105640.0,105630.0,0.03153542]
[1749342390542,0.91722543,105640.0,105630.0,0.03153542]
[1749342390923,0.9105778,105640.0,105630.0,0.03153542]
[1749342391123,0.91722542,105640.0,105630.0,0.03153542]
[1749342391339,0.90912286,105640.0,105630.0,0.03153542]
[1749342391535,0.90912285,105640.0,105630.0,0.03153542]
[1749342392166,0.90912286,105640.0,105630.0,0.03153542]
[1749342392473,1.40036286,105640.0,105630.0,0.03153542]
[1749342392971,1.4003647,105640.0,105630.0,0.03153542]
[1749342393328,1.40036425,105640.0,105630.0,0.03153542]
[1749342393534,1.39371524,105640.0,105630.0,0.03153542]
[1749342393730,1.40036424,105640.0,105630.0,0.03153542]
[1749342393935,1.40036425,105640.0,105630.0,0.03153542]
[1749342395408,1.39371524,105640.0,105630.0,0.03153542]
[1749342395586,1.40036425,105640.0,105630.0,0.03153542]
[1749342396394,1.02412425,105640.0,105630.0,0.03153542]
[1749342396597,1.40036425,105640.0,105630.0,0.03153542]
[1749342396804,1.40036416,105640.0,105630.0,0.03153542]
[1749342398301,1.40036405,105640.0,105630.0,0.03153542]
[1749342398659,1.39371524,105640.0,105630.0,0.03153542]
[1749342398981,1.93955524,105640.0,105630.0,0.03153542]
[1749342399182,1.94620405,105640.0,105630.0,0.03153542]
[1749342399543,1.94620428,105640.0,105630.0,0.03153542]
[1749342400196,1.93955524,105640.0,105630.0,0.03153542]
[1749342400406,1.94620428,105640.0,105630.0,0.03153542]
[1749342401982,1.94620441,105640.0,105630.0,0.03153542]
[1749342402400,1.93955524,105640.0,105630.0,0.03153542]
[1749342402582,1.96393555,105640.0,105630.0,0.03153542]
[1749342403756,1.93955524,105640.0,105630.0,0.03153542]
[1749342403960,1.94620444,105640.0,105630.0,0.03153542]
[1749342404486,1.93955524,105640.0,105630.0,0.03153542]
[1749342404640,1.94620444,105640.0,105630.0,0.03153542]
[1749342405435,1.9462045,105640.0,105630.0,0.03153542]
[1749342405634,1.93955524,105640.0,105630.0,0.03153542]
[1749342405841,1.9462045,105640.0,105630.0,0.03153542]
[1749342406262,1.93955524,105640.0,105630.0,0.03153542]
[1749342406502,1.9462045,105640.0,105630.0,0.03153542]
[1749342407264,1.93955524,105640.0,105630.0,0.03153542]
[1749342407664,1.94620358,105640.0,105630.0,0.03153542]
[1749342407846,1.94620341,105640.0,105630.0,0.03153542]
[1749342408934,1.94620338,105640.0,105630.0,0.03153542]
[1749342409443,1.93955524,105640.0,105630.0,0.03153542]
[1749342409857,1.94620348,105640.0,105630.0,0.01613542]
[1749342409989,1.94620341,105640.0,105630.0,0.01613542]
[1749342410588,1.94620377,105640.0,105630.0,0.01613542]
[1749342410786,1.93955524,105640.0,105630.0,0.01613542]
[1749342411157,1.94620377,105640.0,105630.0,0.01613542]
[1749342411558,1.93955524,105640.0,105630.0,0.01613542]
[1749342411759,1.94620377,105640.0,105630.0,0.01613542]
[1749342412795,1.96393356,105640.0,105630.0,0.01613542]
[1749342412971,1.93955524,105640.0,105630.0,0.01613542]
[1749342413146,1.95728646,105640.0,105630.0,0.01613542]
[1749342413357,1.95728675,105640.0,105630.0,0.01613542]
[1749342413563,1.96393606,105640.0,105630.0,0.01613542]
[1749342413769,1.94620455,105640.0,105630.0,0.01613542]
[1749342414472,1.94620456,105640.0,105630.0,0.01613542]
[1749342414672,1.93955524,105640.0,105630.0,0.01613542]
[1749342415355,1.94620626,105640.0,105630.0,0.01613542]
[1749342416151,1.93955524,105640.0,105630.0,0.01613542]
[1749342416356,1.94620625,105640.0,105630.0,0.01613542]
[1749342416763,1.93955524,105640.0,105630.0,0.01613542]
[1749342417184,1.94620622,105640.0,105630.0,0.01613542]
[1749342418160,1.93955524,105640.0,105630.0,0.01613542]
[1749342418567,1.94620622,105640.0,105630.0,0.01613542]
[1749342418771,1.93955524,105640.0,105630.0,0.01613542]
[1749342418982,1.94620622,105640.0,105630.0,0.01613542]
[1749342419182,1.94620625,105640.0,105630.0,0.01613542]
[1749342419383,1.94620625,105640.0,105630.0,0.00013542]
[1749342419780,1.93955524,105640.0,105630.0,0.00013542]
[1749342419987,1.94620624,105640.0,105630.0,0.00013542]
[1749342420187,0.40813809,105630.0,105620.0,0.06259779]
[1749342420435,0.50274908,105630.0,105620.0,0.06274154]
[1749342420833,0.49609809,105630.0,105620.0,0.06274154]
[1749342421007,0.50274908,105630.0,105620.0,0.06274154]
[1749342421602,0.50474903,105630.0,105620.0,0.06274154]
[1749342422223,0.50474904,105630.0,105620.0,0.06274154]
[1749342422421,0.49809809,105630.0,105620.0,0.06274154]
[1749342422627,0.50474913,105630.0,105620.0,0.06274154]
[1749342423128,0.50474912,105630.0,105620.0,0.06274154]
[1749342423545,0.50474909,105630.0,105620.0,0.06274154]
[1749342423667,0.50474908,105630.0,105620.0,0.06274154]
[1749342423869,0.99598908,105630.0,105620.0,0.06274154]
[1749342424066,1.00707412,105630.0,105620.0,0.06274154]
[1749342424278,1.01372505,105630.0,105620.0,0.06274154]
[1749342424512,1.00707405,105630.0,105620.0,0.06274154]
[1749342424690,1.01372503,105630.0,105620.0,0.06274154]
[1749342424870,1.02308325,105630.0,105620.0,0.06274154]
[1749342425079,0.99869629,105630.0,105620.0,0.06274154]
[1749342425294,1.00534727,105630.0,105620.0,0.06274154]
[1749342425920,1.00534727,105630.0,105620.0,0.25209961]
[1749342426124,1.00534508,105630.0,105620.0,0.25209961]
[1749342426332,1.00534452,105630.0,105620.0,0.25209961]
[1749342426552,0.99869629,105630.0,105620.0,0.26156742]
[1749342426756,1.00534429,105630.0,105620.0,0.25209961]
[1749342426959,1.0053443,105630.0,105620.0,0.25209961]
[1749342427360,0.99869629,105630.0,105620.0,0.26156751]
[1749342427778,0.98922974,105630.0,105620.0,0.26156751]
[1749342428209,0.98641095,105630.0,105620.0,0.25209961]
[1749342428420,0.97976292,105630.0,105620.0,0.25209961]
[1749342428845,0.98641095,105630.0,105620.0,0.25209961]
[1749342429060,0.98641095,105630.0,105620.0,0.26156751]
[1749342429436,0.89845106,105630.0,105620.0,0.26156751]
[1749342429644,1.26507788,105630.0,105620.0,0.26156751]
[1749342429843,1.27172607,105630.0,105620.0,0.26156751]
[1749342430045,1.27172607,105630.0,105620.0,0.27103532]
[1749342430291,1.26507788,105630.0,105620.0,0.27103532]
[1749342430494,1.27172607,105630.0,105620.0,0.27103532]
[1749342430697,1.27172605,105630.0,105620.0,0.27103532]
[1749342431020,1.27172605,105630.0,105620.0,0.26156751]
[1749342431216,1.26507788,105630.0,105620.0,0.26156751]
[1749342431507,1.27172604,105630.0,105620.0,0.26156751]
[1749342431790,1.27172603,105630.0,105620.0,0.26156751]
[1749342431930,1.26507788,105630.0,105620.0,0.26156751]
[1749342432997,1.26507788,105630.0,105620.0,0.25209961]
[1749342433199,1.26507788,105630.0,105620.0,0.26156751]
[1749342434197,1.26507788,105630.0,105620.0,0.25209961]
[1749342436084,1.26507788,105630.0,105620.0,0.25067929]
[1749342438460,0.88895788,105630.0,105620.0,0.25067929]
[1749342438669,1.26507788,105630.0,105620.0,0.25067929]
[1749342443427,0.88895788,105630.0,105620.0,0.25067929]
[1749342443629,1.26503788,105630.0,105620.0,0.25067929]
[1749342446105,1.26499788,105630.0,105620.0,0.25067929]
[1749342446998,1.26499788,105630.0,105620.0,0.26014719]
[1749342447207,1.26499788,105630.0,105620.0,0.269615]
[1749342448136,0.78753774,105630.0,105620.0,0.269615]
[1749342448406,0.19901954,105630.0,105620.0,0.47004541]
[1749342448628,0.28693954,105630.0,105620.0,1.40245753]
[1749342448859,0.28693954,105630.0,105620.0,0.81041735]
[1749342449078,0.28693954,105630.0,105620.0,1.10643744]
[1749342449302,0.28593954,105630.0,105620.0,1.10643744]
[1749342449534,0.28593954,105630.0,105620.0,0.44672816]
[1749342449758,0.28593954,105630.0,105620.0,0.73568816]
[1749342449961,0.19701954,105630.0,105620.0,0.44672816]
[1749342450172,0.28493954,105630.0,105620.0,1.36009235]
[1749342450345,0.08792,105630.0,105620.0,1.41683561]
[1749342452573,0.08792,105630.0,105620.0,1.40217476]
[1749342452775,0.08792,105630.0,105620.0,0.70217476]
[1749342455383,0.08792,105630.0,105620.0,0.73996868]
[1749342456340,0.0973862,105630.0,105620.0,0.73996868]
[1749342456782,0.08792,105630.0,105620.0,0.73996868]
[1749342457187,0.0973862,105630.0,105620.0,0.73996868]